[Event "Early-Titled-Tuesday-Blitz-December-26-2023"]
[Site "Chess.com"]
[Date "2023.12.26"]
[Round "6"]
[White "UK_23"]
[Black "prime-morty"]
[Result "0-1"]
[WhiteElo "2331"]
[BlackElo "2523"]
[TimeControl "180+1"]
[EndTime "9:03:14 PST"]
[Termination "prime-morty won by resignation"]

1. e4 {[%clk 0:03:00.9]} 1... d6 {[%clk 0:02:59.5]} 2. d4 {[%clk 0:03:01]} 2...
Nf6 {[%clk 0:03:00.4]} 3. Nc3 {[%clk 0:03:01.4]} 3... e5 {[%clk 0:03:01.3]} 4.
Nf3 {[%clk 0:03:01.3]} 4... Nbd7 {[%clk 0:03:01.2]} 5. Rg1 {[%clk 0:03:01.6]}
5... g6 {[%clk 0:03:00]} 6. g4 {[%clk 0:03:01.6]} 6... h6 {[%clk 0:03:00.2]} 7.
h4 {[%clk 0:03:01.3]} 7... h5 {[%clk 0:03:00.6]} 8. g5 {[%clk 0:03:01.3]} 8...
Ng4 {[%clk 0:03:01.3]} 9. Qe2 {[%clk 0:02:59.1]} 9... exd4 {[%clk 0:02:57.5]}
10. Nxd4 {[%clk 0:02:59]} 10... Bg7 {[%clk 0:02:58.2]} 11. Nb3 {[%clk
0:02:47.8]} 11... Nb6 {[%clk 0:02:37]} 12. Bd2 {[%clk 0:02:34.7]} 12... Ne5
{[%clk 0:02:35.6]} 13. O-O-O {[%clk 0:02:31.5]} 13... Bg4 {[%clk 0:02:34.8]} 14.
Rxg4 {[%clk 0:02:16.3]} 14... hxg4 {[%clk 0:02:35.7]} 15. Nd5 {[%clk 0:02:09]}
15... Nbc4 {[%clk 0:02:32.4]} 16. Bc3 {[%clk 0:02:06.4]} 16... Rxh4 {[%clk
0:02:27.2]} 17. Kb1 {[%clk 0:02:04]} 17... c6 {[%clk 0:02:22.2]} 18. Ne3 {[%clk
0:01:58.4]} 18... Nxe3 {[%clk 0:02:15.8]} 19. Qxe3 {[%clk 0:01:59.3]} 19... Qe7
{[%clk 0:02:09]} 20. a4 {[%clk 0:01:54.5]} 20... Rh3 {[%clk 0:02:08.1]} 21. Qe1
{[%clk 0:01:51.2]} 21... Nf3 {[%clk 0:02:05.8]} 22. Qe3 {[%clk 0:01:47.7]} 22...
Nxg5 {[%clk 0:02:02.5]} 23. Bxh3 {[%clk 0:01:46.7]} 23... Bxc3 {[%clk
0:01:59.4]} 24. Bxg4 {[%clk 0:01:43]} 24... Bg7 {[%clk 0:01:53.5]} 25. f3 {[%clk
0:01:38.1]} 25... f5 {[%clk 0:01:50.1]} 26. f4 {[%clk 0:01:28.1]} 26... Nxe4
{[%clk 0:01:47.5]} 27. Bf3 {[%clk 0:01:27.5]} 27... Nc3+ {[%clk 0:01:46.6]} 0-1

[Event "Early-Titled-Tuesday-Blitz-December-26-2023"]
[Site "Chess.com"]
[Date "2023.12.26"]
[Round "6"]
[White "LuisFSiles"]
[Black "stratacticos"]
[Result "1-0"]
[WhiteElo "2276"]
[BlackElo "1851"]
[TimeControl "180+1"]
[EndTime "9:03:29 PST"]
[Termination "LuisFSiles won by resignation"]

1. d4 {[%clk 0:03:00.9]} 1... Nf6 {[%clk 0:02:58.6]} 2. Bg5 {[%clk 0:02:56.2]}
2... Ne4 {[%clk 0:02:56.9]} 3. h4 {[%clk 0:02:54.9]} 3... h6 {[%clk 0:02:54.5]}
4. Bf4 {[%clk 0:02:53.9]} 4... c5 {[%clk 0:02:52.3]} 5. d5 {[%clk 0:02:52.4]}
5... Qb6 {[%clk 0:02:49.2]} 6. Nd2 {[%clk 0:02:51.5]} 6... Nf6 {[%clk
0:02:46.9]} 7. e4 {[%clk 0:02:40.4]} 7... Qxb2 {[%clk 0:02:42.9]} 8. Rb1 {[%clk
0:02:30.4]} 8... Qa3 {[%clk 0:02:37.3]} 9. Nc4 {[%clk 0:02:22.6]} 9... Qc3+
{[%clk 0:02:22.9]} 10. Bd2 {[%clk 0:02:19.5]} 10... Qd4 {[%clk 0:02:19.8]} 11.
f3 {[%clk 0:02:11.2]} 11... Nh5 {[%clk 0:01:52.6]} 12. Ne2 {[%clk 0:02:04.7]}
12... Qf6 {[%clk 0:01:47.6]} 13. Bc3 {[%clk 0:01:45.1]} 13... Qg6 {[%clk
0:01:41.7]} 14. g4 {[%clk 0:01:38.5]} 14... Nf6 {[%clk 0:01:40.9]} 15. Nf4
{[%clk 0:01:32.1]} 15... Qh7 {[%clk 0:01:39.6]} 16. e5 {[%clk 0:01:28.5]} 16...
Ng8 {[%clk 0:01:30.9]} 17. Bd3 {[%clk 0:01:26.1]} 17... g6 {[%clk 0:01:30.2]}
18. e6 {[%clk 0:01:24.3]} 18... f6 {[%clk 0:01:28.2]} 19. Bxg6+ {[%clk 0:01:23]}
1-0

[Event "Early-Titled-Tuesday-Blitz-December-26-2023"]
[Site "Chess.com"]
[Date "2023.12.26"]
[Round "6"]
[White "nekotyanof"]
[Black "chito89"]
[Result "0-1"]
[WhiteElo "2634"]
[BlackElo "2841"]
[TimeControl "180+1"]
[EndTime "9:03:49 PST"]
[Termination "chito89 won by resignation"]

1. e4 {[%clk 0:03:00.9]} 1... Nc6 {[%clk 0:02:02.8]} 2. Nc3 {[%clk 0:03:00.6]}
2... d6 {[%clk 0:02:03.7]} 3. d4 {[%clk 0:03:00.8]} 3... Nf6 {[%clk 0:02:00.7]}
4. d5 {[%clk 0:03:01.2]} 4... Nb8 {[%clk 0:01:57.5]} 5. Bc4 {[%clk 0:02:59.6]}
5... c6 {[%clk 0:01:57.9]} 6. Nf3 {[%clk 0:02:59.1]} 6... g6 {[%clk 0:01:55]} 7.
O-O {[%clk 0:02:58.3]} 7... Bg7 {[%clk 0:01:53.8]} 8. Bg5 {[%clk 0:02:59]} 8...
O-O {[%clk 0:01:52.9]} 9. Qd2 {[%clk 0:02:58.4]} 9... b5 {[%clk 0:01:53]} 10.
Bxf6 {[%clk 0:02:54.6]} 10... Bxf6 {[%clk 0:01:51.3]} 11. Bb3 {[%clk 0:02:49.8]}
11... b4 {[%clk 0:01:46]} 12. Ne2 {[%clk 0:02:49.3]} 12... c5 {[%clk 0:01:46.4]}
13. c4 {[%clk 0:02:43.9]} 13... Bg4 {[%clk 0:01:44]} 14. Ng3 {[%clk 0:02:42.4]}
14... Bxf3 {[%clk 0:01:35.9]} 15. gxf3 {[%clk 0:02:43.3]} 15... Nd7 {[%clk
0:01:35.9]} 16. f4 {[%clk 0:02:43.1]} 16... Nb6 {[%clk 0:01:30]} 17. a4 {[%clk
0:02:41.5]} 17... a5 {[%clk 0:01:15.9]} 18. Rfc1 {[%clk 0:02:41.8]} 18... e6
{[%clk 0:01:12.7]} 19. dxe6 {[%clk 0:02:31.7]} 19... fxe6 {[%clk 0:01:13.6]} 20.
Ra2 {[%clk 0:02:30.6]} 20... Bd4 {[%clk 0:00:55.7]} 21. Ne2 {[%clk 0:02:30.2]}
21... e5 {[%clk 0:00:52.9]} 22. Nxd4 {[%clk 0:02:29.8]} 22... exd4 {[%clk
0:00:53.8]} 23. Bd1 {[%clk 0:02:30.3]} 23... Qh4 {[%clk 0:00:52.2]} 24. f5
{[%clk 0:02:26.9]} 24... gxf5 {[%clk 0:00:49.2]} 25. exf5 {[%clk 0:02:26.7]}
25... Rxf5 {[%clk 0:00:50.1]} 26. b3 {[%clk 0:02:27.3]} 26... Kh8 {[%clk
0:00:47]} 27. Bc2 {[%clk 0:02:23.7]} 27... Rg8+ {[%clk 0:00:44.7]} 28. Kf1
{[%clk 0:02:20.8]} 28... Qh3+ {[%clk 0:00:38.1]} 29. Ke2 {[%clk 0:02:14.8]}
29... Re5+ {[%clk 0:00:38.7]} 30. Be4 {[%clk 0:02:13.1]} 30... Rxe4+ {[%clk
0:00:37.2]} 0-1

[Event "Early-Titled-Tuesday-Blitz-December-26-2023"]
[Site "Chess.com"]
[Date "2023.12.26"]
[Round "6"]
[White "SaqoChess_Twitch"]
[Black "FunnyDuck66"]
[Result "1-0"]
[WhiteElo "2648"]
[BlackElo "2475"]
[TimeControl "180+1"]
[EndTime "9:04:03 PST"]
[Termination "SaqoChess_Twitch won by checkmate"]

1. d4 {[%clk 0:03:00.9]} 1... Nf6 {[%clk 0:03:00.1]} 2. c4 {[%clk 0:03:01.6]}
2... e6 {[%clk 0:03:00.3]} 3. Nc3 {[%clk 0:03:02.2]} 3... Bb4 {[%clk 0:03:00.6]}
4. e3 {[%clk 0:03:02.9]} 4... c5 {[%clk 0:03:00.8]} 5. a3 {[%clk 0:03:03.6]}
5... Ba5 {[%clk 0:03:00]} 6. Bd3 {[%clk 0:03:03.2]} 6... Bxc3+ {[%clk
0:02:55.6]} 7. bxc3 {[%clk 0:03:03.1]} 7... d5 {[%clk 0:02:55.6]} 8. cxd5 {[%clk
0:03:02.9]} 8... Nxd5 {[%clk 0:02:53.2]} 9. Ne2 {[%clk 0:03:03.1]} 9... O-O
{[%clk 0:02:49.2]} 10. O-O {[%clk 0:03:02.8]} 10... Nc6 {[%clk 0:02:46.1]} 11.
e4 {[%clk 0:03:00.2]} 11... Nf6 {[%clk 0:02:46.2]} 12. e5 {[%clk 0:02:57.7]}
12... Nd5 {[%clk 0:02:42.5]} 13. f4 {[%clk 0:02:47.3]} 13... cxd4 {[%clk
0:02:30.6]} 14. cxd4 {[%clk 0:02:48.2]} 14... g6 {[%clk 0:02:12]} 15. Bb2 {[%clk
0:02:41.4]} 15... b6 {[%clk 0:02:09.2]} 16. Qd2 {[%clk 0:02:37.1]} 16... Bb7
{[%clk 0:02:07.3]} 17. Ng3 {[%clk 0:02:35.9]} 17... Na5 {[%clk 0:02:01.2]} 18.
Qf2 {[%clk 0:02:29.2]} 18... f5 {[%clk 0:01:25.9]} 19. exf6 {[%clk 0:02:23.7]}
19... Qxf6 {[%clk 0:01:25]} 20. Ne4 {[%clk 0:02:18.1]} 20... Qg7 {[%clk
0:01:22.9]} 21. Ng5 {[%clk 0:02:17.5]} 21... Rae8 {[%clk 0:01:18.2]} 22. Qg3
{[%clk 0:02:11.9]} 22... Nb3 {[%clk 0:01:13]} 23. Rae1 {[%clk 0:02:11.1]} 23...
Qf6 {[%clk 0:00:57.5]} 24. Qh3 {[%clk 0:02:02]} 24... Re7 {[%clk 0:00:53]} 25.
Rxe6 {[%clk 0:01:50.3]} 25... Rxe6 {[%clk 0:00:32.6]} 26. Qxh7# {[%clk
0:01:49.6]} 1-0

[Event "Early-Titled-Tuesday-Blitz-December-26-2023"]
[Site "Chess.com"]
[Date "2023.12.26"]
[Round "6"]
[White "ploxoi"]
[Black "alvarorodriguezavila"]
[Result "1-0"]
[WhiteElo "2503"]
[BlackElo "2294"]
[TimeControl "180+1"]
[EndTime "9:04:43 PST"]
[Termination "ploxoi won by resignation"]

1. d4 {[%clk 0:02:55.9]} 1... Nf6 {[%clk 0:02:59.6]} 2. c4 {[%clk 0:02:54.9]}
2... Nc6 {[%clk 0:03:00.1]} 3. Nf3 {[%clk 0:02:51.5]} 3... e6 {[%clk 0:03:00.1]}
4. Nc3 {[%clk 0:02:50.2]} 4... Bb4 {[%clk 0:03:00.6]} 5. Qc2 {[%clk 0:02:49.4]}
5... O-O {[%clk 0:03:01.1]} 6. g3 {[%clk 0:02:47.9]} 6... d6 {[%clk 0:02:59.7]}
7. Bg2 {[%clk 0:02:48]} 7... e5 {[%clk 0:03:00.1]} 8. e3 {[%clk 0:02:41.2]} 8...
exd4 {[%clk 0:02:57.3]} 9. exd4 {[%clk 0:02:40.9]} 9... Re8+ {[%clk 0:02:58]}
10. Be3 {[%clk 0:02:41.5]} 10... Ng4 {[%clk 0:02:58.3]} 11. O-O {[%clk
0:02:41.4]} 11... Nxe3 {[%clk 0:02:45.9]} 12. fxe3 {[%clk 0:02:42.3]} 12... Rxe3
{[%clk 0:02:45.9]} 13. Nd5 {[%clk 0:02:40.7]} 13... Re8 {[%clk 0:02:38.4]} 14.
a3 {[%clk 0:02:32.3]} 14... Ba5 {[%clk 0:02:31.5]} 15. h4 {[%clk 0:02:29]} 15...
h6 {[%clk 0:02:25.6]} 16. Rad1 {[%clk 0:02:16.4]} 16... Bb6 {[%clk 0:02:08.9]}
17. c5 {[%clk 0:02:06.2]} 17... dxc5 {[%clk 0:02:07.7]} 18. dxc5 {[%clk
0:02:07.1]} 18... Bxc5+ {[%clk 0:02:08]} 19. Qxc5 {[%clk 0:02:05.1]} 19... Bg4
{[%clk 0:02:01.2]} 20. Kh2 {[%clk 0:02:00.9]} 20... Qc8 {[%clk 0:01:45.6]} 21.
Qf2 {[%clk 0:01:44.7]} 21... Qf5 {[%clk 0:01:25]} 22. Nxc7 {[%clk 0:01:20.2]}
22... Rac8 {[%clk 0:01:12.9]} 23. Nxe8 {[%clk 0:01:19.8]} 23... Rxe8 {[%clk
0:01:12.7]} 24. Rde1 {[%clk 0:01:15.8]} 24... Rd8 {[%clk 0:01:09.6]} 25. Ne5
{[%clk 0:01:16.2]} 25... Qe6 {[%clk 0:00:30.3]} 26. Nxf7 {[%clk 0:01:11.2]} 1-0

[Event "Early-Titled-Tuesday-Blitz-December-26-2023"]
[Site "Chess.com"]
[Date "2023.12.26"]
[Round "6"]
[White "SahibSinghKnight"]
[Black "Road2GM3000"]
[Result "1-0"]
[WhiteElo "2685"]
[BlackElo "2497"]
[TimeControl "180+1"]
[EndTime "9:04:52 PST"]
[Termination "SahibSinghKnight won by checkmate"]

1. e4 {[%clk 0:02:59]} 1... c5 {[%clk 0:02:59.8]} 2. Nf3 {[%clk 0:02:57.8]} 2...
d6 {[%clk 0:03:00.3]} 3. d4 {[%clk 0:02:58.3]} 3... cxd4 {[%clk 0:03:01]} 4.
Nxd4 {[%clk 0:02:59.2]} 4... Nf6 {[%clk 0:03:01.6]} 5. Nc3 {[%clk 0:02:59.8]}
5... a6 {[%clk 0:03:02.3]} 6. Be3 {[%clk 0:03:00.1]} 6... e5 {[%clk 0:03:02.7]}
7. Nf3 {[%clk 0:03:00]} 7... Be7 {[%clk 0:03:01.2]} 8. Bc4 {[%clk 0:03:00.4]}
8... O-O {[%clk 0:02:59.2]} 9. O-O {[%clk 0:03:00.8]} 9... Be6 {[%clk
0:02:57.7]} 10. Bb3 {[%clk 0:03:00.9]} 10... Bxb3 {[%clk 0:02:50.2]} 11. axb3
{[%clk 0:02:59.8]} 11... Nbd7 {[%clk 0:02:50.6]} 12. b4 {[%clk 0:02:56.6]} 12...
Rc8 {[%clk 0:02:46.2]} 13. Qd3 {[%clk 0:02:55]} 13... Qc7 {[%clk 0:02:45.3]} 14.
Nd2 {[%clk 0:02:50.3]} 14... Nb6 {[%clk 0:02:43.1]} 15. b5 {[%clk 0:02:48.8]}
15... Nc4 {[%clk 0:02:29.7]} 16. bxa6 {[%clk 0:02:30]} 16... Nxb2 {[%clk
0:02:08.6]} 17. Nd5 {[%clk 0:02:30.2]} 17... Nxd5 {[%clk 0:01:16.4]} 18. Qxd5
{[%clk 0:02:29.9]} 18... bxa6 {[%clk 0:01:15]} 19. Rxa6 {[%clk 0:02:18.9]} 19...
Qxc2 {[%clk 0:01:07.5]} 20. Ra2 {[%clk 0:02:07.8]} 20... Rb8 {[%clk 0:00:45.9]}
21. Rb1 {[%clk 0:01:51.1]} 21... Rb4 {[%clk 0:00:38.2]} 22. h3 {[%clk
0:01:33.3]} 22... Rfb8 {[%clk 0:00:36.5]} 23. Ra7 {[%clk 0:01:28.9]} 23... Bf8
{[%clk 0:00:34.9]} 24. Qxf7+ {[%clk 0:01:24.6]} 24... Kh8 {[%clk 0:00:35.5]} 25.
Bh6 {[%clk 0:01:23.8]} 25... R4b7 {[%clk 0:00:15.1]} 26. Rxb7 {[%clk 0:01:23.2]}
26... Rxb7 {[%clk 0:00:15.8]} 27. Qxf8# {[%clk 0:01:23.5]} 1-0

[Event "Early-Titled-Tuesday-Blitz-December-26-2023"]
[Site "Chess.com"]
[Date "2023.12.26"]
[Round "6"]
[White "albi1999"]
[Black "tantaan"]
[Result "1-0"]
[WhiteElo "2674"]
[BlackElo "2479"]
[TimeControl "180+1"]
[EndTime "9:05:03 PST"]
[Termination "albi1999 won by resignation"]

1. d4 {[%clk 0:02:55.9]} 1... Nf6 {[%clk 0:02:59.2]} 2. Nf3 {[%clk 0:02:56.8]}
2... e6 {[%clk 0:02:59.6]} 3. c4 {[%clk 0:02:56]} 3... Bb4+ {[%clk 0:02:59.7]}
4. Nc3 {[%clk 0:02:54.6]} 4... O-O {[%clk 0:02:51.6]} 5. Bg5 {[%clk 0:02:53.6]}
5... h6 {[%clk 0:02:49.5]} 6. Bh4 {[%clk 0:02:53.8]} 6... d5 {[%clk 0:02:48.8]}
7. cxd5 {[%clk 0:02:51]} 7... exd5 {[%clk 0:02:48.5]} 8. e3 {[%clk 0:02:51.5]}
8... Bg4 {[%clk 0:02:48.1]} 9. Qb3 {[%clk 0:02:49.6]} 9... c5 {[%clk 0:02:39.7]}
10. Ne5 {[%clk 0:02:43.1]} 10... Be6 {[%clk 0:02:38.1]} 11. Be2 {[%clk
0:02:31.6]} 11... g5 {[%clk 0:02:20.7]} 12. Bg3 {[%clk 0:02:29.5]} 12... Ne4
{[%clk 0:02:17.6]} 13. dxc5 {[%clk 0:02:17.5]} 13... Qa5 {[%clk 0:01:53.1]} 14.
O-O {[%clk 0:01:46.7]} 14... d4 {[%clk 0:01:36.3]} 15. Nd5 {[%clk 0:01:37.9]}
15... Nd2 {[%clk 0:01:35]} 16. Qxb4 {[%clk 0:01:34.7]} 16... Qxb4 {[%clk
0:01:30.6]} 17. Nxb4 {[%clk 0:01:35.6]} 17... Nxf1 {[%clk 0:01:31.2]} 18. Bxf1
{[%clk 0:01:35.3]} 18... dxe3 {[%clk 0:01:30.9]} 19. fxe3 {[%clk 0:01:36.2]}
19... a5 {[%clk 0:01:29.1]} 20. Nc2 {[%clk 0:01:33.6]} 20... f6 {[%clk
0:01:27.3]} 21. Nd4 {[%clk 0:01:30.4]} 21... Bd5 {[%clk 0:01:14.2]} 22. Bc4
{[%clk 0:01:23.3]} 22... Bxc4 {[%clk 0:01:09.8]} 23. Nxc4 {[%clk 0:01:24.2]}
23... Nd7 {[%clk 0:01:10]} 24. Bd6 {[%clk 0:01:21.4]} 24... Rfe8 {[%clk
0:01:09]} 25. Rc1 {[%clk 0:01:11.5]} 25... Rac8 {[%clk 0:01:07]} 26. Nxa5 {[%clk
0:01:11]} 26... Rxe3 {[%clk 0:01:05.9]} 27. Nxb7 {[%clk 0:01:10.2]} 27... Rd3
{[%clk 0:01:02.8]} 28. Nf5 {[%clk 0:01:07]} 28... Kf7 {[%clk 0:00:59.2]} 29. Bg3
{[%clk 0:00:54.4]} 29... Rd5 {[%clk 0:00:45]} 30. Nfd6+ {[%clk 0:00:53.6]} 1-0

[Event "Early-Titled-Tuesday-Blitz-December-26-2023"]
[Site "Chess.com"]
[Date "2023.12.26"]
[Round "6"]
[White "Let_it_be_1"]
[Black "LileKoridze"]
[Result "0-1"]
[WhiteElo "2568"]
[BlackElo "2394"]
[TimeControl "180+1"]
[EndTime "9:05:05 PST"]
[Termination "LileKoridze won by resignation"]

1. e4 {[%clk 0:02:57.5]} 1... c5 {[%clk 0:03:00.2]} 2. Nf3 {[%clk 0:02:56.6]}
2... d6 {[%clk 0:03:00.7]} 3. d4 {[%clk 0:02:56.4]} 3... cxd4 {[%clk 0:03:01.2]}
4. Nxd4 {[%clk 0:02:57.2]} 4... Nf6 {[%clk 0:03:01.1]} 5. Nc3 {[%clk 0:02:57.1]}
5... a6 {[%clk 0:03:01.1]} 6. Be2 {[%clk 0:02:57.1]} 6... e5 {[%clk 0:02:59.4]}
7. Nb3 {[%clk 0:02:57.5]} 7... Be7 {[%clk 0:02:58.9]} 8. O-O {[%clk 0:02:57]}
8... O-O {[%clk 0:02:58.9]} 9. Kh1 {[%clk 0:02:57.5]} 9... b5 {[%clk 0:02:58.4]}
10. a4 {[%clk 0:02:57.1]} 10... b4 {[%clk 0:02:58.3]} 11. Nd5 {[%clk 0:02:57.4]}
11... a5 {[%clk 0:02:55.6]} 12. Be3 {[%clk 0:02:43.2]} 12... Nbd7 {[%clk
0:02:50.3]} 13. f4 {[%clk 0:02:35]} 13... Bb7 {[%clk 0:02:49.8]} 14. fxe5 {[%clk
0:02:24]} 14... dxe5 {[%clk 0:02:29.5]} 15. Nxe7+ {[%clk 0:02:08.5]} 15... Qxe7
{[%clk 0:02:29.3]} 16. Bb5 {[%clk 0:02:00.9]} 16... Rfd8 {[%clk 0:02:28.4]} 17.
Bg5 {[%clk 0:01:48]} 17... h6 {[%clk 0:02:10.4]} 18. Bh4 {[%clk 0:01:39.2]}
18... g5 {[%clk 0:02:10.3]} 19. Be1 {[%clk 0:01:26.9]} 19... Nxe4 {[%clk
0:02:03.4]} 20. Qe2 {[%clk 0:01:25.8]} 20... Ndc5 {[%clk 0:01:48.5]} 21. Nxc5
{[%clk 0:01:20.2]} 21... Nxc5 {[%clk 0:01:48.6]} 22. c3 {[%clk 0:01:13.3]} 22...
bxc3 {[%clk 0:01:11.1]} 23. Bxc3 {[%clk 0:01:12.9]} 23... f6 {[%clk 0:01:10.8]}
24. b4 {[%clk 0:01:05.9]} 24... Nb3 {[%clk 0:01:09.5]} 25. Bc4+ {[%clk
0:01:02.3]} 25... Bd5 {[%clk 0:01:09.5]} 26. Bxd5+ {[%clk 0:01:00.8]} 26... Rxd5
{[%clk 0:01:10.4]} 27. Qc4 {[%clk 0:01:01.1]} 27... Qf7 {[%clk 0:00:53.8]} 28.
Rxf6 {[%clk 0:00:47.4]} 28... Rd1+ {[%clk 0:00:51.6]} 0-1

[Event "Early-Titled-Tuesday-Blitz-December-26-2023"]
[Site "Chess.com"]
[Date "2023.12.26"]
[Round "6"]
[White "RamyresCoelho"]
[Black "GiorgianBarbosa"]
[Result "0-1"]
[WhiteElo "2295"]
[BlackElo "2490"]
[TimeControl "180+1"]
[EndTime "9:05:10 PST"]
[Termination "GiorgianBarbosa won by resignation"]

1. e4 {[%clk 0:02:59.9]} 1... c5 {[%clk 0:03:00.5]} 2. Nf3 {[%clk 0:02:59.5]}
2... d6 {[%clk 0:03:00.8]} 3. d4 {[%clk 0:02:59.6]} 3... cxd4 {[%clk 0:03:01.7]}
4. Nxd4 {[%clk 0:03:00.5]} 4... Nf6 {[%clk 0:03:01.9]} 5. Nc3 {[%clk 0:03:01.1]}
5... g6 {[%clk 0:03:01.9]} 6. f4 {[%clk 0:03:01.3]} 6... Bg7 {[%clk 0:02:56.8]}
7. e5 {[%clk 0:03:01.4]} 7... Nh5 {[%clk 0:02:55.5]} 8. Bb5+ {[%clk 0:02:44.3]}
8... Bd7 {[%clk 0:02:54.2]} 9. e6 {[%clk 0:02:43.6]} 9... fxe6 {[%clk
0:02:53.6]} 10. Nxe6 {[%clk 0:02:40.5]} 10... Bxc3+ {[%clk 0:02:54]} 11. bxc3
{[%clk 0:02:37.2]} 11... Qc8 {[%clk 0:02:54.9]} 12. Bxd7+ {[%clk 0:02:31.5]}
12... Kxd7 {[%clk 0:02:55.8]} 13. Ng5 {[%clk 0:01:32]} 13... Qxc3+ {[%clk
0:02:49.1]} 14. Bd2 {[%clk 0:01:31.9]} 14... Qc5 {[%clk 0:02:44.9]} 15. Rc1
{[%clk 0:01:15.1]} 15... Nc6 {[%clk 0:02:42.7]} 16. Qe2 {[%clk 0:01:13.4]} 16...
Nd4 {[%clk 0:02:36.5]} 17. Qg4+ {[%clk 0:01:10.1]} 17... Nf5 {[%clk 0:02:32.5]}
18. Ne4 {[%clk 0:01:05.3]} 18... Qc4 {[%clk 0:02:22.1]} 19. Ng5 {[%clk
0:00:53.4]} 19... Nf6 {[%clk 0:02:17.5]} 20. Qf3 {[%clk 0:00:52.3]} 20... Qc6
{[%clk 0:02:04.4]} 21. Qe2 {[%clk 0:00:49.7]} 21... Nd4 {[%clk 0:01:56.3]} 22.
Qe3 {[%clk 0:00:42.9]} 22... Qxg2 {[%clk 0:01:40.7]} 23. Rg1 {[%clk 0:00:35.3]}
23... Qd5 {[%clk 0:01:40.9]} 24. c4 {[%clk 0:00:32.1]} 24... Qc5 {[%clk
0:01:27.7]} 25. Rf1 {[%clk 0:00:27.9]} 25... Rhe8 {[%clk 0:01:14.7]} 26. Bc3
{[%clk 0:00:27.6]} 26... Nc2+ {[%clk 0:01:13.5]} 0-1

[Event "Early-Titled-Tuesday-Blitz-December-26-2023"]
[Site "Chess.com"]
[Date "2023.12.26"]
[Round "6"]
[White "SirStrateg"]
[Black "CarlosjPineror"]
[Result "1-0"]
[WhiteElo "2671"]
[BlackElo "2498"]
[TimeControl "180+1"]
[EndTime "9:05:13 PST"]
[Termination "SirStrateg won by resignation"]

1. d4 {[%clk 0:03:00.9]} 1... Nf6 {[%clk 0:02:51.1]} 2. Bg5 {[%clk 0:03:01.2]}
2... Ne4 {[%clk 0:02:49.8]} 3. Bf4 {[%clk 0:03:01.7]} 3... c5 {[%clk 0:02:49.6]}
4. d5 {[%clk 0:03:01.6]} 4... Qb6 {[%clk 0:02:48.1]} 5. Qc1 {[%clk 0:02:56.7]}
5... g6 {[%clk 0:02:42.1]} 6. f3 {[%clk 0:02:56.1]} 6... Nf6 {[%clk 0:02:41.9]}
7. e4 {[%clk 0:02:56.3]} 7... d6 {[%clk 0:02:39.6]} 8. a4 {[%clk 0:02:53.3]}
8... Nh5 {[%clk 0:02:30]} 9. a5 {[%clk 0:02:45]} 9... Qc7 {[%clk 0:02:05.5]} 10.
Be3 {[%clk 0:02:45.1]} 10... Bg7 {[%clk 0:02:00.9]} 11. g4 {[%clk 0:02:44.9]}
11... Nf6 {[%clk 0:02:00.4]} 12. Nd2 {[%clk 0:02:44.7]} 12... O-O {[%clk
0:01:59.7]} 13. h4 {[%clk 0:02:38.8]} 13... e6 {[%clk 0:01:59.1]} 14. c4 {[%clk
0:02:37.9]} 14... h5 {[%clk 0:01:55.7]} 15. g5 {[%clk 0:02:36.8]} 15... Nfd7
{[%clk 0:01:51.6]} 16. Nh3 {[%clk 0:02:29.4]} 16... Na6 {[%clk 0:01:32.7]} 17.
Nf4 {[%clk 0:02:23.8]} 17... e5 {[%clk 0:01:30.4]} 18. Nd3 {[%clk 0:02:23.6]}
18... f6 {[%clk 0:01:18.2]} 19. Bh3 {[%clk 0:02:12.6]} 19... Ndb8 {[%clk
0:01:15.4]} 20. Bg2 {[%clk 0:02:01.3]} 20... f5 {[%clk 0:01:14.4]} 21. exf5
{[%clk 0:01:55.1]} 21... gxf5 {[%clk 0:01:07.3]} 22. f4 {[%clk 0:01:55.1]} 22...
e4 {[%clk 0:01:06.8]} 23. Nf2 {[%clk 0:01:52.1]} 23... Nb4 {[%clk 0:01:06.7]}
24. Ke2 {[%clk 0:01:42.9]} 24... N8a6 {[%clk 0:01:03.9]} 25. Nf1 {[%clk
0:01:37.1]} 25... Bd7 {[%clk 0:01:02.8]} 26. Ng3 {[%clk 0:01:37.3]} 26... b5
{[%clk 0:01:02.8]} 27. axb6 {[%clk 0:01:36.9]} 27... axb6 {[%clk 0:01:02.8]} 28.
Nxh5 {[%clk 0:01:36.7]} 28... b5 {[%clk 0:01:02.6]} 29. Nxg7 {[%clk 0:01:37]}
29... Kxg7 {[%clk 0:01:02.6]} 30. Qc3+ {[%clk 0:01:34]} 30... Kg8 {[%clk
0:01:01.1]} 31. b3 {[%clk 0:01:34.6]} 31... bxc4 {[%clk 0:00:49.6]} 32. bxc4
{[%clk 0:01:34.7]} 32... Nxd5 {[%clk 0:00:50.5]} 33. cxd5 {[%clk 0:01:32.1]}
33... Bb5+ {[%clk 0:00:50.9]} 34. Kd2 {[%clk 0:01:31.9]} 34... Nb4 {[%clk
0:00:50.1]} 35. Rxa8 {[%clk 0:01:30.6]} 35... Rxa8 {[%clk 0:00:49.8]} 36. Ra1
{[%clk 0:01:31.4]} 36... Rxa1 {[%clk 0:00:41.8]} 37. Qxa1 {[%clk 0:01:31.6]}
37... Nxd5 {[%clk 0:00:42.3]} 38. Bxe4 {[%clk 0:01:27]} 38... fxe4 {[%clk
0:00:34]} 39. Nxe4 {[%clk 0:01:21.1]} 39... Qe7 {[%clk 0:00:33.3]} 40. Qa8+
{[%clk 0:01:19.7]} 1-0